[Event "Late-Titled-Tuesday-Blitz-February-13-2024"]
[Site "Chess.com"]
[Date "2024.02.13"]
[Round "6"]
[White "GMBenjaminBok"]
[Black "nihalsarin"]
[Result "1/2-1/2"]
[WhiteElo "2986"]
[BlackElo "3187"]
[TimeControl "180+1"]
[EndTime "15:07:35 PST"]
[Termination "Game drawn - insufficient material"]

1. d4 {[%clk 0:03:00.9]} 1... Nf6 {[%clk 0:02:57.6]} 2. c4 {[%clk 0:03:00.8]}
2... g6 {[%clk 0:02:58.2]} 3. g3 {[%clk 0:03:00.7]} 3... c5 {[%clk 0:02:55.3]}
4. dxc5 {[%clk 0:02:59.4]} 4... Na6 {[%clk 0:02:53.5]} 5. Bg2 {[%clk 0:02:59.2]}
5... Nxc5 {[%clk 0:02:53.5]} 6. Nc3 {[%clk 0:02:59.5]} 6... Bg7 {[%clk 0:02:54]}
7. Nf3 {[%clk 0:02:58.8]} 7... O-O {[%clk 0:02:54.3]} 8. O-O {[%clk 0:02:54.7]}
8... b6 {[%clk 0:02:55]} 9. Nd4 {[%clk 0:02:41.1]} 9... Bb7 {[%clk 0:02:53.9]}
10. Bxb7 {[%clk 0:02:40.1]} 10... Nxb7 {[%clk 0:02:54.8]} 11. e4 {[%clk
0:02:36.3]} 11... Rc8 {[%clk 0:02:55.1]} 12. b3 {[%clk 0:02:24.1]} 12... d5
{[%clk 0:01:50]} 13. exd5 {[%clk 0:02:12.1]} 13... Nxd5 {[%clk 0:01:50.1]} 14.
Nxd5 {[%clk 0:02:10]} 14... e6 {[%clk 0:01:50.5]} 15. Ba3 {[%clk 0:01:33.6]}
15... Nc5 {[%clk 0:01:50.5]} 16. Rc1 {[%clk 0:01:15.6]} 16... exd5 {[%clk
0:01:50.1]} 17. cxd5 {[%clk 0:01:13]} 17... Qxd5 {[%clk 0:01:49.8]} 18. Nb5
{[%clk 0:01:00.9]} 18... Nd3 {[%clk 0:01:45.7]} 19. Nc7 {[%clk 0:00:46.8]} 19...
Qd8 {[%clk 0:00:49.6]} 20. Bxf8 {[%clk 0:00:38.6]} 20... Nxc1 {[%clk 0:00:49.4]}
21. Bxg7 {[%clk 0:00:28.9]} 21... Kxg7 {[%clk 0:00:50.3]} 22. Qxc1 {[%clk
0:00:12.2]} 22... Rxc7 {[%clk 0:00:50.2]} 23. Qb2+ {[%clk 0:00:10.7]} 23... Qf6
{[%clk 0:00:50.1]} 24. Rb1 {[%clk 0:00:07.8]} 24... h5 {[%clk 0:00:48.2]} 25.
Kg2 {[%clk 0:00:06.4]} 25... Qxb2 {[%clk 0:00:44.3]} 26. Rxb2 {[%clk 0:00:06.5]}
26... Kf6 {[%clk 0:00:45.2]} 27. Rd2 {[%clk 0:00:06.1]} 27... Ke5 {[%clk
0:00:42.8]} 28. Kf3 {[%clk 0:00:05.5]} 28... g5 {[%clk 0:00:41.5]} 29. h3 {[%clk
0:00:04.9]} 29... f6 {[%clk 0:00:40.5]} 30. Ke3 {[%clk 0:00:04.5]} 30... Rc3+
{[%clk 0:00:40]} 31. Rd3 {[%clk 0:00:05]} 31... Rxd3+ {[%clk 0:00:30.3]} 32.
Kxd3 {[%clk 0:00:05.2]} 32... g4 {[%clk 0:00:18.4]} 33. hxg4 {[%clk 0:00:04.8]}
33... hxg4 {[%clk 0:00:19.3]} 34. Ke3 {[%clk 0:00:05.1]} 34... f5 {[%clk
0:00:19.2]} 35. f3 {[%clk 0:00:03.4]} 35... gxf3 {[%clk 0:00:09.7]} 36. Kxf3
{[%clk 0:00:04.3]} 36... a5 {[%clk 0:00:10.2]} 37. a4 {[%clk 0:00:03.6]} 37...
Ke6 {[%clk 0:00:03.4]} 38. Kf4 {[%clk 0:00:04.1]} 38... Kf6 {[%clk 0:00:03.8]}
39. Ke3 {[%clk 0:00:04]} 39... Kg6 {[%clk 0:00:03.5]} 40. Kf4 {[%clk 0:00:03.8]}
40... Kf6 {[%clk 0:00:03.8]} 41. Ke3 {[%clk 0:00:04.4]} 41... Kf7 {[%clk
0:00:03.9]} 42. Kf4 {[%clk 0:00:04.2]} 42... Kg6 {[%clk 0:00:04.3]} 43. g4
{[%clk 0:00:03.5]} 43... fxg4 {[%clk 0:00:04.5]} 44. Kxg4 {[%clk 0:00:04.4]}
44... Kf6 {[%clk 0:00:05.4]} 45. Kf4 {[%clk 0:00:05.1]} 45... Ke6 {[%clk
0:00:06.3]} 46. Ke4 {[%clk 0:00:05.7]} 46... Kd6 {[%clk 0:00:07.2]} 47. Kd4
{[%clk 0:00:06.3]} 47... Kc6 {[%clk 0:00:08.1]} 48. Kc4 {[%clk 0:00:06.7]} 48...
b5+ {[%clk 0:00:09]} 49. axb5+ {[%clk 0:00:06.9]} 49... Kb6 {[%clk 0:00:09.9]}
50. Kc3 {[%clk 0:00:06.9]} 50... Kxb5 {[%clk 0:00:10]} 51. Kb2 {[%clk
0:00:07.5]} 51... a4 {[%clk 0:00:10.8]} 52. bxa4+ {[%clk 0:00:08]} 52... Kxa4
{[%clk 0:00:11.7]} 1/2-1/2

[Event "Late-Titled-Tuesday-Blitz-February-13-2024"]
[Site "Chess.com"]
[Date "2024.02.13"]
[Round "6"]
[White "Durarbayli"]
[Black "BogdanDeac"]
[Result "1/2-1/2"]
[WhiteElo "2943"]
[BlackElo "3019"]
[TimeControl "180+1"]
[EndTime "15:07:36 PST"]
[Termination "Game drawn - insufficient material"]

1. e4 {[%clk 0:03:00.9]} 1... e5 {[%clk 0:03:00.2]} 2. Nf3 {[%clk 0:02:59.5]}
2... Nc6 {[%clk 0:03:00.8]} 3. d4 {[%clk 0:02:56.3]} 3... exd4 {[%clk
0:03:00.3]} 4. Nxd4 {[%clk 0:02:55.7]} 4... Nf6 {[%clk 0:03:00.9]} 5. Nxc6
{[%clk 0:02:55.9]} 5... bxc6 {[%clk 0:03:01.8]} 6. e5 {[%clk 0:02:56.5]} 6...
Qe7 {[%clk 0:03:02.2]} 7. Qe2 {[%clk 0:02:56.9]} 7... Nd5 {[%clk 0:03:02.8]} 8.
h4 {[%clk 0:02:57.6]} 8... d6 {[%clk 0:03:00.7]} 9. exd6 {[%clk 0:02:50.1]} 9...
cxd6 {[%clk 0:02:57.7]} 10. Na3 {[%clk 0:02:38]} 10... Bf5 {[%clk 0:01:55.8]}
11. Bd2 {[%clk 0:02:24.9]} 11... Nb6 {[%clk 0:01:32]} 12. c4 {[%clk 0:02:13.6]}
12... Qe6 {[%clk 0:01:08.5]} 13. O-O-O {[%clk 0:02:01.9]} 13... Qxe2 {[%clk
0:00:58.7]} 14. Bxe2 {[%clk 0:02:01.8]} 14... d5 {[%clk 0:00:59.3]} 15. cxd5
{[%clk 0:01:35.9]} 15... Bxa3 {[%clk 0:00:48.3]} 16. bxa3 {[%clk 0:01:35.9]}
16... cxd5 {[%clk 0:00:36.9]} 17. Bb5+ {[%clk 0:01:24.9]} 17... Bd7 {[%clk
0:00:33]} 18. Rde1+ {[%clk 0:01:17.6]} 18... Kd8 {[%clk 0:00:32.7]} 19. Ba6
{[%clk 0:01:12.3]} 19... Bc8 {[%clk 0:00:29.8]} 20. Bd3 {[%clk 0:01:08.6]} 20...
Bd7 {[%clk 0:00:21.2]} 21. Ba6 {[%clk 0:01:01.3]} 21... Bc8 {[%clk 0:00:20.7]}
22. Bd3 {[%clk 0:01:00.6]} 22... Bd7 {[%clk 0:00:21]} 23. Bc3 {[%clk 0:00:47.3]}
23... Rc8 {[%clk 0:00:16.5]} 24. Kd2 {[%clk 0:00:47.6]} 24... f6 {[%clk
0:00:13.3]} 25. h5 {[%clk 0:00:48.1]} 25... h6 {[%clk 0:00:07.8]} 26. Rh4 {[%clk
0:00:46]} 26... Nc4+ {[%clk 0:00:06.9]} 27. Bxc4 {[%clk 0:00:42.9]} 27... Rxc4
{[%clk 0:00:07.8]} 28. Rxc4 {[%clk 0:00:42.7]} 28... dxc4 {[%clk 0:00:08]} 29.
Re4 {[%clk 0:00:43.5]} 29... Bb5 {[%clk 0:00:05.5]} 30. a4 {[%clk 0:00:41]}
30... Bxa4 {[%clk 0:00:04.9]} 31. Rxc4 {[%clk 0:00:39.9]} 31... Bd7 {[%clk
0:00:05.5]} 32. Bd4 {[%clk 0:00:36.8]} 32... a6 {[%clk 0:00:04.7]} 33. f3 {[%clk
0:00:33.8]} 33... Ke7 {[%clk 0:00:03.4]} 34. Rc7 {[%clk 0:00:32.6]} 34... Rc8
{[%clk 0:00:03.6]} 35. Ra7 {[%clk 0:00:33.2]} 35... Rc6 {[%clk 0:00:03.6]} 36.
a4 {[%clk 0:00:32.4]} 36... Ke8 {[%clk 0:00:03.4]} 37. a5 {[%clk 0:00:31.9]}
37... Rd6 {[%clk 0:00:03.7]} 38. Ke3 {[%clk 0:00:32.1]} 38... Re6+ {[%clk
0:00:03.8]} 39. Kf2 {[%clk 0:00:32.4]} 39... Rd6 {[%clk 0:00:01.9]} 40. Bb6
{[%clk 0:00:32]} 40... Rd5 {[%clk 0:00:02.4]} 41. g4 {[%clk 0:00:31.7]} 41... f5
{[%clk 0:00:02.5]} 42. gxf5 {[%clk 0:00:19.5]} 42... Rxf5 {[%clk 0:00:02.5]} 43.
Rxa6 {[%clk 0:00:19.9]} 43... Rxh5 {[%clk 0:00:02.5]} 44. Ra8+ {[%clk
0:00:20.3]} 44... Ke7 {[%clk 0:00:03]} 45. a6 {[%clk 0:00:20.5]} 45... Rb5
{[%clk 0:00:03.4]} 46. Bd4 {[%clk 0:00:18.2]} 46... Ra5 {[%clk 0:00:02.7]} 47.
Bxg7 {[%clk 0:00:14.9]} 47... h5 {[%clk 0:00:03.2]} 48. a7 {[%clk 0:00:13.8]}
48... Bc6 {[%clk 0:00:03.6]} 49. Rh8 {[%clk 0:00:10.6]} 49... Rxa7 {[%clk
0:00:02.8]} 50. Rxh5 {[%clk 0:00:10.9]} 50... Ra2+ {[%clk 0:00:02.9]} 51. Kg3
{[%clk 0:00:10.9]} 51... Ra3 {[%clk 0:00:02.9]} 52. Rf5 {[%clk 0:00:11.4]} 52...
Rxf3+ {[%clk 0:00:02.8]} 53. Rxf3 {[%clk 0:00:12.3]} 53... Bxf3 {[%clk
0:00:03.3]} 1/2-1/2

[Event "Late-Titled-Tuesday-Blitz-February-13-2024"]
[Site "Chess.com"]
[Date "2024.02.13"]
[Round "6"]
[White "AryanTari"]
[Black "AlexPapasimakopoulos"]
[Result "1-0"]
[WhiteElo "2945"]
[BlackElo "2774"]
[TimeControl "180+1"]
[EndTime "15:07:39 PST"]
[Termination "AryanTari won on time"]

1. c4 {[%clk 0:03:00.9]} 1... e6 {[%clk 0:02:58.3]} 2. Nf3 {[%clk 0:02:56.6]}
2... d5 {[%clk 0:02:56.8]} 3. e3 {[%clk 0:02:56.2]} 3... Nf6 {[%clk 0:02:56.1]}
4. Nc3 {[%clk 0:02:56]} 4... Be7 {[%clk 0:02:53.8]} 5. b3 {[%clk 0:02:55.4]}
5... b6 {[%clk 0:02:40.2]} 6. Bb2 {[%clk 0:02:54.8]} 6... Bb7 {[%clk 0:02:39.1]}
7. Rc1 {[%clk 0:02:42.1]} 7... O-O {[%clk 0:02:30.1]} 8. Rg1 {[%clk 0:02:40.5]}
8... c5 {[%clk 0:02:28.1]} 9. g4 {[%clk 0:02:26.5]} 9... d4 {[%clk 0:02:27.5]}
10. exd4 {[%clk 0:02:27.4]} 10... cxd4 {[%clk 0:02:28.2]} 11. Nb5 {[%clk
0:02:28.1]} 11... Nc6 {[%clk 0:02:20.4]} 12. Nbxd4 {[%clk 0:01:50.7]} 12... Nxd4
{[%clk 0:02:18.2]} 13. Nxd4 {[%clk 0:01:51.6]} 13... Bc5 {[%clk 0:02:14.4]} 14.
Nc2 {[%clk 0:01:52.2]} 14... e5 {[%clk 0:02:12.4]} 15. Bg2 {[%clk 0:01:38.8]}
15... Bxg2 {[%clk 0:01:39.5]} 16. Rxg2 {[%clk 0:01:39.7]} 16... Re8 {[%clk
0:01:34.3]} 17. Qe2 {[%clk 0:01:38.4]} 17... a5 {[%clk 0:01:31.7]} 18. g5 {[%clk
0:01:36.7]} 18... Nd7 {[%clk 0:01:28.1]} 19. Ne3 {[%clk 0:01:26.2]} 19... Bxe3
{[%clk 0:01:23.9]} 20. dxe3 {[%clk 0:01:20.3]} 20... a4 {[%clk 0:01:14.1]} 21.
b4 {[%clk 0:01:19.6]} 21... a3 {[%clk 0:01:10.8]} 22. Bc3 {[%clk 0:01:09.2]}
22... Rc8 {[%clk 0:01:10.5]} 23. Rg4 {[%clk 0:01:06.6]} 23... Nf8 {[%clk
0:01:06.9]} 24. h4 {[%clk 0:01:02.5]} 24... Qc7 {[%clk 0:00:53.3]} 25. Re4
{[%clk 0:01:00.7]} 25... Qc6 {[%clk 0:00:44.7]} 26. Qg4 {[%clk 0:00:55.9]} 26...
Nd7 {[%clk 0:00:41.7]} 27. h5 {[%clk 0:00:52.1]} 27... Rf8 {[%clk 0:00:25.7]}
28. Qh4 {[%clk 0:00:17.1]} 28... Qe6 {[%clk 0:00:20.4]} 29. Rd1 {[%clk
0:00:15.4]} 29... f5 {[%clk 0:00:19.1]} 30. gxf6 {[%clk 0:00:15.4]} 30... Nxf6
{[%clk 0:00:19.3]} 31. Rxe5 {[%clk 0:00:14.3]} 31... Qxc4 {[%clk 0:00:19.9]} 32.
Qxc4+ {[%clk 0:00:12.9]} 32... Rxc4 {[%clk 0:00:20.8]} 33. Rd3 {[%clk
0:00:09.5]} 33... Rfc8 {[%clk 0:00:17.6]} 34. Kd2 {[%clk 0:00:08.2]} 34... Ne4+
{[%clk 0:00:14.9]} 35. Rxe4 {[%clk 0:00:08.7]} 35... Rxe4 {[%clk 0:00:15.7]} 36.
Rd7 {[%clk 0:00:09.2]} 36... Rg4 {[%clk 0:00:16.1]} 37. f4 {[%clk 0:00:08.2]}
37... h6 {[%clk 0:00:15.6]} 38. Kd3 {[%clk 0:00:08.2]} 38... b5 {[%clk
0:00:15.7]} 39. Rb7 {[%clk 0:00:07.5]} 39... Rd8+ {[%clk 0:00:13.8]} 40. Bd4
{[%clk 0:00:07.5]} 40... Rg2 {[%clk 0:00:13.7]} 41. Ra7 {[%clk 0:00:08]} 41...
Rxa2 {[%clk 0:00:13.7]} 42. Rxg7+ {[%clk 0:00:07.5]} 42... Kf8 {[%clk
0:00:14.2]} 43. Rh7 {[%clk 0:00:05.4]} 43... Rd6 {[%clk 0:00:10.2]} 44. Ra7
{[%clk 0:00:04.7]} 44... Rc6 {[%clk 0:00:05.4]} 45. Ke4 {[%clk 0:00:04.7]} 45...
Rcc2 {[%clk 0:00:03.6]} 46. Kf5 {[%clk 0:00:04.6]} 46... Ke8 {[%clk 0:00:04.1]}
47. e4 {[%clk 0:00:03.5]} 47... Rh2 {[%clk 0:00:03.4]} 48. Bc5 {[%clk
0:00:03.7]} 48... Rxh5+ {[%clk 0:00:02.7]} 49. Ke6 {[%clk 0:00:04.4]} 1-0

[Event "Late-Titled-Tuesday-Blitz-February-13-2024"]
[Site "Chess.com"]
[Date "2024.02.13"]
[Round "6"]
[White "JaackCamel"]
[Black "Nemsko"]
[Result "0-1"]
[WhiteElo "2195"]
[BlackElo "2386"]
[TimeControl "180+1"]
[EndTime "15:07:40 PST"]
[Termination "Nemsko won by resignation"]

1. d4 {[%clk 0:03:00.9]} 1... Nf6 {[%clk 0:02:58.6]} 2. c4 {[%clk 0:03:00.5]}
2... e6 {[%clk 0:02:57.6]} 3. Nc3 {[%clk 0:03:00.6]} 3... d5 {[%clk 0:02:57.6]}
4. cxd5 {[%clk 0:03:00.4]} 4... exd5 {[%clk 0:02:58.5]} 5. Bg5 {[%clk
0:03:00.1]} 5... Be7 {[%clk 0:02:57.7]} 6. e3 {[%clk 0:03:00.3]} 6... h6 {[%clk
0:02:57.9]} 7. Bh4 {[%clk 0:02:59.2]} 7... O-O {[%clk 0:02:56.9]} 8. Bd3 {[%clk
0:02:58.7]} 8... c6 {[%clk 0:02:57]} 9. Qc2 {[%clk 0:02:58.5]} 9... Be6 {[%clk
0:02:51.2]} 10. Nge2 {[%clk 0:02:57.2]} 10... b5 {[%clk 0:02:40.1]} 11. O-O
{[%clk 0:02:55.4]} 11... Na6 {[%clk 0:02:39.3]} 12. a3 {[%clk 0:02:54.7]} 12...
Nc7 {[%clk 0:02:29.4]} 13. h3 {[%clk 0:02:52]} 13... a5 {[%clk 0:02:26.6]} 14.
Rad1 {[%clk 0:02:47.9]} 14... Na6 {[%clk 0:02:15.8]} 15. f3 {[%clk 0:02:43.9]}
15... b4 {[%clk 0:02:15.8]} 16. Nb1 {[%clk 0:02:43.6]} 16... Qb6 {[%clk
0:02:06.4]} 17. Bf2 {[%clk 0:02:41.8]} 17... c5 {[%clk 0:02:01.6]} 18. Bf5
{[%clk 0:02:31.1]} 18... Rac8 {[%clk 0:01:53.9]} 19. Bxe6 {[%clk 0:02:26.5]}
19... fxe6 {[%clk 0:01:48.5]} 20. dxc5 {[%clk 0:02:21.6]} 20... Bxc5 {[%clk
0:01:45.4]} 21. Qd3 {[%clk 0:02:16.5]} 21... Rfd8 {[%clk 0:01:36.5]} 22. Nd4
{[%clk 0:02:15.9]} 22... e5 {[%clk 0:01:31.9]} 23. Nf5 {[%clk 0:02:07.3]} 23...
Qe6 {[%clk 0:01:11.1]} 24. Ng3 {[%clk 0:01:41]} 24... Nc7 {[%clk 0:01:07]} 25.
Rc1 {[%clk 0:01:36.9]} 25... Qb6 {[%clk 0:01:02.3]} 26. Rfe1 {[%clk 0:01:33.8]}
26... Ne6 {[%clk 0:01:00.9]} 27. Qg6 {[%clk 0:01:32.9]} 27... Nf8 {[%clk
0:01:00.3]} 28. Qf5 {[%clk 0:01:32.4]} 28... Qe6 {[%clk 0:00:56.9]} 29. Qd3
{[%clk 0:01:30.5]} 29... Qb6 {[%clk 0:00:51.1]} 30. Qf5 {[%clk 0:01:29.7]} 30...
Qe6 {[%clk 0:00:43]} 31. Qd3 {[%clk 0:01:28.9]} 31... Bb6 {[%clk 0:00:43.6]} 32.
Rxc8 {[%clk 0:01:23.9]} 32... Rxc8 {[%clk 0:00:44.5]} 33. Nd2 {[%clk 0:01:18.9]}
33... N8d7 {[%clk 0:00:39.6]} 34. Ndf1 {[%clk 0:01:18.3]} 34... Nc5 {[%clk
0:00:39.4]} 35. Qg6 {[%clk 0:01:18.1]} 35... Qf7 {[%clk 0:00:39]} 36. Qf5 {[%clk
0:01:17.9]} 36... Qe6 {[%clk 0:00:39.1]} 37. Qg6 {[%clk 0:01:18.1]} 37... Qe8
{[%clk 0:00:37.5]} 38. Qf5 {[%clk 0:01:17.5]} 38... Rc7 {[%clk 0:00:28]} 39. Rd1
{[%clk 0:01:13.5]} 39... Qe6 {[%clk 0:00:27.6]} 40. Qg6 {[%clk 0:01:12.5]} 40...
Qf7 {[%clk 0:00:28.2]} 41. Qf5 {[%clk 0:01:12.4]} 41... Qe6 {[%clk 0:00:28.8]}
42. Qg6 {[%clk 0:01:12.7]} 42... bxa3 {[%clk 0:00:27.3]} 43. bxa3 {[%clk
0:01:12.3]} 43... Qf7 {[%clk 0:00:27.5]} 44. Qf5 {[%clk 0:01:12.2]} 44... Qe6
{[%clk 0:00:25.9]} 45. Qg6 {[%clk 0:01:12.3]} 45... Qe8 {[%clk 0:00:26.4]} 46.
Qf5 {[%clk 0:01:12]} 46... Ncd7 {[%clk 0:00:20.5]} 47. Rb1 {[%clk 0:01:10]}
47... Bc5 {[%clk 0:00:20.1]} 48. a4 {[%clk 0:01:03.8]} 48... Bb4 {[%clk
0:00:20.4]} 49. Rd1 {[%clk 0:01:02.6]} 49... Nb6 {[%clk 0:00:19.7]} 50. h4
{[%clk 0:01:01.5]} 50... Nxa4 {[%clk 0:00:19.4]} 51. h5 {[%clk 0:01:01.6]} 51...
Nc3 {[%clk 0:00:19.8]} 52. Ra1 {[%clk 0:01:00.2]} 52... a4 {[%clk 0:00:19.6]}
53. Nd2 {[%clk 0:00:58.8]} 53... a3 {[%clk 0:00:19.3]} 54. Nb3 {[%clk
0:00:57.7]} 54... a2 {[%clk 0:00:15.4]} 55. Be1 {[%clk 0:00:56.4]} 55... Ra7
{[%clk 0:00:14.2]} 56. Qc2 {[%clk 0:00:54.9]} 56... d4 {[%clk 0:00:12.6]} 57.
exd4 {[%clk 0:00:54.1]} 57... exd4 {[%clk 0:00:13.5]} 58. Nxd4 {[%clk
0:00:52.1]} 58... Qe3+ {[%clk 0:00:12.7]} 59. Bf2 {[%clk 0:00:51.2]} 59... Qe5
{[%clk 0:00:05.1]} 60. Qb3+ {[%clk 0:00:49.1]} 60... Kh7 {[%clk 0:00:04.5]} 61.
Qc2+ {[%clk 0:00:48.6]} 61... Kh8 {[%clk 0:00:05.2]} 62. Ndf5 {[%clk 0:00:44.3]}
62... Ne2+ {[%clk 0:00:04.7]} 63. Nxe2 {[%clk 0:00:44]} 63... Qxa1+ {[%clk
0:00:05]} 64. Kh2 {[%clk 0:00:43.7]} 64... Qe5+ {[%clk 0:00:05.2]} 65. f4 {[%clk
0:00:43.3]} 65... Qc7 {[%clk 0:00:03.7]} 66. Qe4 {[%clk 0:00:40.1]} 66... a1=Q
{[%clk 0:00:03.2]} 67. Qe8+ {[%clk 0:00:40]} 67... Nxe8 {[%clk 0:00:03]} 0-1

[Event "Late-Titled-Tuesday-Blitz-February-13-2024"]
[Site "Chess.com"]
[Date "2024.02.13"]
[Round "6"]
[White "FM_Kappeler"]
[Black "gxbg2000"]
[Result "1/2-1/2"]
[WhiteElo "2255"]
[BlackElo "2059"]
[TimeControl "180+1"]
[EndTime "15:07:40 PST"]
[Termination "Game drawn by repetition"]

1. c4 {[%clk 0:03:00.9]} 1... c5 {[%clk 0:02:59.6]} 2. Nf3 {[%clk 0:02:58.7]}
2... g6 {[%clk 0:02:59.7]} 3. g3 {[%clk 0:02:58.6]} 3... Bg7 {[%clk 0:02:59.9]}
4. Bg2 {[%clk 0:02:58.5]} 4... Nf6 {[%clk 0:03:00.7]} 5. O-O {[%clk 0:02:57.2]}
5... O-O {[%clk 0:03:01.6]} 6. Nc3 {[%clk 0:02:55.9]} 6... Nc6 {[%clk
0:03:01.6]} 7. d4 {[%clk 0:02:55.4]} 7... cxd4 {[%clk 0:03:01.2]} 8. Nxd4 {[%clk
0:02:55]} 8... a6 {[%clk 0:03:01.6]} 9. a4 {[%clk 0:02:38.7]} 9... Qc7 {[%clk
0:03:00.9]} 10. Bg5 {[%clk 0:02:25.8]} 10... d6 {[%clk 0:02:51.3]} 11. Qd2
{[%clk 0:02:19.7]} 11... Re8 {[%clk 0:02:47.5]} 12. Rac1 {[%clk 0:02:18.1]}
12... Nxd4 {[%clk 0:02:46.6]} 13. Qxd4 {[%clk 0:02:16.6]} 13... Bf5 {[%clk
0:02:41.2]} 14. Qd2 {[%clk 0:02:13.3]} 14... Qa5 {[%clk 0:02:35.7]} 15. Rfd1
{[%clk 0:02:00.9]} 15... Rac8 {[%clk 0:02:34.7]} 16. b3 {[%clk 0:01:28.2]} 16...
Qb6 {[%clk 0:02:21.5]} 17. e4 {[%clk 0:01:12.8]} 17... Be6 {[%clk 0:02:19.8]}
18. Qc2 {[%clk 0:01:10.9]} 18... Nd7 {[%clk 0:02:12.9]} 19. Be3 {[%clk
0:01:09.8]} 19... Qc7 {[%clk 0:02:05.1]} 20. Nd5 {[%clk 0:01:08.7]} 20... Bxd5
{[%clk 0:02:04.9]} 21. exd5 {[%clk 0:01:08.5]} 21... a5 {[%clk 0:01:59.4]} 22.
Re1 {[%clk 0:01:06.5]} 22... b6 {[%clk 0:01:58.5]} 23. h4 {[%clk 0:01:03.7]}
23... h5 {[%clk 0:01:57.6]} 24. Bg5 {[%clk 0:01:02.8]} 24... Ne5 {[%clk
0:01:48.2]} 25. Kh1 {[%clk 0:01:01]} 25... Kh7 {[%clk 0:01:39.8]} 26. Be4 {[%clk
0:01:00.1]} 26... f5 {[%clk 0:01:36.5]} 27. Bg2 {[%clk 0:00:57.3]} 27... Bf6
{[%clk 0:01:36.3]} 28. Bf4 {[%clk 0:00:53]} 28... Qc5 {[%clk 0:01:26.3]} 29. Be3
{[%clk 0:00:52]} 29... Qc7 {[%clk 0:01:25.6]} 30. Qe2 {[%clk 0:00:47.9]} 30...
Ng4 {[%clk 0:01:19.4]} 31. Bd2 {[%clk 0:00:41.8]} 31... Qc5 {[%clk 0:01:08.4]}
32. Rf1 {[%clk 0:00:41.2]} 32... Ne5 {[%clk 0:01:04.1]} 33. Be3 {[%clk
0:00:38.3]} 33... Qc7 {[%clk 0:01:03]} 34. Bh3 {[%clk 0:00:36]} 34... e6 {[%clk
0:01:03]} 35. dxe6 {[%clk 0:00:34.4]} 35... Rxe6 {[%clk 0:01:02.9]} 36. Bxf5
{[%clk 0:00:29.7]} 36... gxf5 {[%clk 0:01:02.5]} 37. Qxh5+ {[%clk 0:00:29.5]}
37... Kg8 {[%clk 0:00:57.5]} 38. Qxf5 {[%clk 0:00:28]} 38... Qf7 {[%clk
0:00:55]} 39. Bxb6 {[%clk 0:00:26]} 39... Nd7 {[%clk 0:00:48.9]} 40. Bxa5 {[%clk
0:00:24.1]} 40... Re5 {[%clk 0:00:48.5]} 41. Qg4+ {[%clk 0:00:19.9]} 41... Bg7
{[%clk 0:00:45.1]} 42. Bc3 {[%clk 0:00:18.9]} 42... Nf6 {[%clk 0:00:43.5]} 43.
Qd1 {[%clk 0:00:16.2]} 43... Rf5 {[%clk 0:00:38.2]} 44. Qxd6 {[%clk 0:00:15.7]}
44... Qb7+ {[%clk 0:00:33.5]} 45. Kh2 {[%clk 0:00:14.4]} 45... Ng4+ {[%clk
0:00:23.3]} 46. Kh3 {[%clk 0:00:13.5]} 46... Nxf2+ {[%clk 0:00:19.4]} 47. Rxf2
{[%clk 0:00:13.6]} 47... Rxf2 {[%clk 0:00:19.5]} 48. Qe6+ {[%clk 0:00:12.8]}
48... Kh7 {[%clk 0:00:15.5]} 49. Bxg7 {[%clk 0:00:10.5]} 49... Qg2+ {[%clk
0:00:14.5]} 50. Kg4 {[%clk 0:00:10.3]} 50... Qf3+ {[%clk 0:00:11.6]} 51. Kh3
{[%clk 0:00:10.6]} 51... Qg2+ {[%clk 0:00:10.7]} 52. Kg4 {[%clk 0:00:10.9]}
52... Qf3+ {[%clk 0:00:06.4]} 53. Kh3 {[%clk 0:00:10.9]} 53... Qg2+ {[%clk
0:00:02.9]} 1/2-1/2

[Event "Late-Titled-Tuesday-Blitz-February-13-2024"]
[Site "Chess.com"]
[Date "2024.02.13"]
[Round "6"]
[White "Savagelittlemole"]
[Black "azikom"]
[Result "0-1"]
[WhiteElo "2453"]
[BlackElo "2698"]
[TimeControl "180+1"]
[EndTime "15:07:45 PST"]
[Termination "azikom won by resignation"]

1. e4 {[%clk 0:03:00.9]} 1... Nf6 {[%clk 0:03:00.9]} 2. Nc3 {[%clk 0:02:58.1]}
2... d5 {[%clk 0:03:00]} 3. exd5 {[%clk 0:02:55.1]} 3... Nxd5 {[%clk 0:02:58.8]}
4. Nge2 {[%clk 0:02:52.2]} 4... Nb6 {[%clk 0:02:57.4]} 5. g3 {[%clk 0:02:51.1]}
5... Nc6 {[%clk 0:02:55.4]} 6. Bg2 {[%clk 0:02:51.7]} 6... Bg4 {[%clk
0:02:54.2]} 7. O-O {[%clk 0:02:51.3]} 7... e6 {[%clk 0:02:52.8]} 8. h3 {[%clk
0:02:50]} 8... Bh5 {[%clk 0:02:52.6]} 9. d3 {[%clk 0:02:42.2]} 9... Qd7 {[%clk
0:02:51.6]} 10. Bf4 {[%clk 0:02:34.9]} 10... e5 {[%clk 0:02:39.7]} 11. Be3
{[%clk 0:02:34.4]} 11... f5 {[%clk 0:02:16.1]} 12. a4 {[%clk 0:02:31.6]} 12...
a6 {[%clk 0:02:14.1]} 13. a5 {[%clk 0:02:26.1]} 13... Nc8 {[%clk 0:02:14]} 14.
Qd2 {[%clk 0:02:12.4]} 14... Bd6 {[%clk 0:02:05.1]} 15. d4 {[%clk 0:02:06]}
15... e4 {[%clk 0:02:02.6]} 16. Nf4 {[%clk 0:01:37.5]} 16... Bf7 {[%clk
0:02:01.6]} 17. g4 {[%clk 0:00:40.3]} 17... fxg4 {[%clk 0:01:55.7]} 18. Nxe4
{[%clk 0:00:30.8]} 18... O-O {[%clk 0:01:55.7]} 19. hxg4 {[%clk 0:00:25.4]}
19... Qxg4 {[%clk 0:01:53.2]} 20. Nxd6 {[%clk 0:00:25.1]} 20... Nxd6 {[%clk
0:01:52.7]} 21. Qe2 {[%clk 0:00:22.8]} 21... Qxe2 {[%clk 0:01:45.2]} 22. Nxe2
{[%clk 0:00:23.7]} 22... Bc4 {[%clk 0:01:45.4]} 23. Rfe1 {[%clk 0:00:22.4]}
23... Nb4 {[%clk 0:01:44.9]} 24. Rac1 {[%clk 0:00:20.6]} 24... Bd5 {[%clk
0:01:42.9]} 25. Nf4 {[%clk 0:00:16.9]} 25... Bxg2 {[%clk 0:01:42.2]} 26. Kxg2
{[%clk 0:00:17.8]} 26... Rae8 {[%clk 0:01:40.5]} 27. c3 {[%clk 0:00:17.2]} 27...
Nc6 {[%clk 0:01:39.7]} 28. d5 {[%clk 0:00:16]} 28... Nxa5 {[%clk 0:01:38.7]} 29.
Ne6 {[%clk 0:00:15.9]} 29... Rf7 {[%clk 0:01:38.6]} 30. Bd4 {[%clk 0:00:12.7]}
30... Nb3 {[%clk 0:01:36.3]} 31. Rcd1 {[%clk 0:00:12.9]} 31... Nxd4 {[%clk
0:01:33]} 32. Rxd4 {[%clk 0:00:13.8]} 32... h6 {[%clk 0:01:28.4]} 33. Rd3 {[%clk
0:00:13.4]} 33... a5 {[%clk 0:01:24.8]} 34. Rde3 {[%clk 0:00:13.7]} 34... b5
{[%clk 0:01:09]} 35. b3 {[%clk 0:00:13.5]} 35... Ree7 {[%clk 0:01:04.1]} 36. Ra1
{[%clk 0:00:11.8]} 36... Rf5 {[%clk 0:00:59.1]} 37. Rxa5 {[%clk 0:00:08.3]}
37... Rxd5 {[%clk 0:00:57.9]} 38. Ra8+ {[%clk 0:00:08.9]} 38... Re8 {[%clk
0:00:42.6]} 39. Nxc7 {[%clk 0:00:05.8]} 39... Rxa8 {[%clk 0:00:39.9]} 40. Nxa8
{[%clk 0:00:06.7]} 40... Nf5 {[%clk 0:00:33.8]} 41. Re8+ {[%clk 0:00:06.3]}
41... Kf7 {[%clk 0:00:30.5]} 42. Rb8 {[%clk 0:00:07]} 42... Nh4+ {[%clk
0:00:27.4]} 43. Kg3 {[%clk 0:00:06.9]} 43... g5 {[%clk 0:00:27.3]} 44. Nc7
{[%clk 0:00:06.4]} 44... Rd3+ {[%clk 0:00:26.4]} 45. Kg4 {[%clk 0:00:06.3]}
45... Rxc3 {[%clk 0:00:22.4]} 46. Rxb5 {[%clk 0:00:06.5]} 46... Rxc7 {[%clk
0:00:21.8]} 47. Kh5 {[%clk 0:00:06]} 47... Kg7 {[%clk 0:00:20.5]} 48. f4 {[%clk
0:00:05.2]} 48... Nf3 {[%clk 0:00:18.7]} 49. Rf5 {[%clk 0:00:03.8]} 49... Nd4
{[%clk 0:00:17.9]} 50. Rd5 {[%clk 0:00:02.8]} 50... Ne6 {[%clk 0:00:17.6]} 51.
fxg5 {[%clk 0:00:02.8]} 51... Nf4+ {[%clk 0:00:17.4]} 0-1